Cogmind - Beta 10.2 @@@ ROGUE MODE // 2022.02.07 @ 17:12:46 Player: Conner Result: Destroyed by S-27 Virus with Autogun Performance ------------- Evolutions (4) 2000 Regions Visited (7) 1400 Robots Destroyed (26) 130 Value Destroyed (841) 841 Prototype IDs (5) 100 Alien Tech Used (0) 0 Bonus (-23) -23 TOTAL SCORE: 4448 Bonus ------- Follower Combat Kills 14 Friendly Fire -37 Cogmind --------- Core Integrity 0/850 Matter 19/300 Energy 99/100 System Corruption 1% Temperature Cool (0) Movement Core (50) Location -6/Factory Parts ------- > --- POWER (2) -------- (None) > --- PROPULSION (3) --- (None) > --- UTILITY (8) ------ (None) > --- WEAPON (2) ------- (None) > --- INVENTORY (4) ---- Aerolev Unit Large Storage Unit Improved Assault Rifle Improved Grenade Launcher Peak State ------------ > --- POWER ------------ Nuclear Core > --- PROPULSION ------- Airjet Aerolev Unit Aerolev Unit > --- UTILITY ---------- Improved Heat Sink Improved Heat Sink Large Storage Unit Advanced Sensor Array Improved Terrain Scanner Improved Terrain Scan Processor Improved Terrain Scan Processor > --- WEAPON ----------- Plasma Cannon Advanced EMP Blaster > --- INVENTORY -------- Ion Engine Improved Hover Unit Large Storage Unit Improved Signal Interpreter Pulse Rifle Improved Assault Rifle Improved Assault Rifle Improved Assault Rifle Improved Grenade Launcher [Rating: 42] Favorites ----------- Power Ion Engine Engine Ion Engine Power Core Nuclear Core Propulsion Wheel Treads Light Treads Wheel Wheel Hover Unit Aerolev Unit Utility Improved Terrain Scan Processor Device Improved Terrain Scanner Storage Large Storage Unit Processor Improved Terrain Scan Processor Protection Medium Armor Plating Weapon Autogun Energy Gun Pulse Rifle Energy Cannon Advanced Beam Cannon Ballistic Gun Autogun Ballistic Cannon Assault Cannon Launcher Advanced EMP Blaster Build | -11 -10 -9 -8 -7 -7 -7 -6 ------- Run | Scr Mat Mat Mat Fac Was Fac Fac Slots Evolved 8 | . . 2 2 2 . . 2 Power 1 | . . . . . . . 1 Propulsion 1 | . . . 1 . . . . Utility 6 | . . 2 1 2 . . 1 Weapon . | . . . . . . . . Parts Attached 45 | 8 1 7 23 3 3 . . Power 6 | 1 1 1 2 . 1 . . Engine 5 | 1 1 1 1 . 1 . . Core 1 | . . . 1 . . . . Reactor . | . . . . . . . . Propulsion 11 | 3 . 2 6 . . . . Treads 1 | . . . 1 . . . . Leg . | . . . . . . . . Wheel 6 | 3 . 2 1 . . . . Hover 4 | . . . 4 . . . . Flight . | . . . . . . . . Utility 15 | 2 . 2 8 2 1 . . Device 9 | 1 . 1 5 2 . . . Storage 2 | . . . 1 . 1 . . Processor 3 | 1 . . 2 . . . . Hackware . | . . . . . . . . Protection 1 | . . 1 . . . . . Artifact . | . . . . . . . . Weapon 13 | 2 . 2 7 1 1 . . Energy Gun 3 | . . . 2 . 1 . . Energy Cannon 4 | . . 1 2 1 . . . Ballistic Gun 4 | 2 . 1 1 . . . . Ballistic Cannon 1 | . . . 1 . . . . Launcher 1 | . . . 1 . . . . Special Weapon . | . . . . . . . . Impact Weapon . | . . . . . . . . Slashing Weapon . | . . . . . . . . Piercing Weapon . | . . . . . . . . Special Melee Weapon . | . . . . . . . . Unidentified Prototypes 3 | . . 1 2 . . . . Parts Lost 25 | . . 1 13 1 9 1 . Power 2 | . . . 1 . 1 . . Propulsion 7 | . . 1 4 . 2 . . Utility 7 | . . . 3 . 3 1 . Weapon 9 | . . . 5 1 3 . . Highest Loss Streak 7 | . . 1 7 1 6 1 . Average Slot Usage (%) 62 | . 100 85 83 99 50 6 . Engine 4 | . 14 11 5 . . . . Core 1 | . . . 2 7 3 . . Wheel 8 | . 28 20 10 . . . . Hover 5 | . . . 7 23 9 . . Device 14 | . 14 14 20 30 14 . . Storage 1 | . . . 1 7 2 . . Processor 11 | . 14 11 16 15 11 6 . Protection 1 | . . 6 . . . . . Energy Cannon 3 | . . 6 5 6 3 . . Ballistic Gun 6 | . 28 15 5 . . . . Ballistic Cannon 1 | . . . 3 . . . . Launcher 1 | . . . 2 7 2 . . Naked Turns 185 | . . . . . . 33 152 Heaviest Build 40 | 7 9 21 37 40 40 . . Greatest Support 36 | 26 20 26 36 31 31 3 3 Greatest Overweight (x) 3 | 1 . 2 1 1 3 . . Average Overweight (x) . | . . . . 1 . . . Largest Inventory Capacity 10 | 4 4 4 10 10 10 4 4 Average Capacity 5 | 4 4 4 5 10 6 4 4 Most Carried 10 | 4 4 4 10 9 9 4 4 Average Carried 4 | 2 4 3 4 8 5 4 4 Final Capacity 10 | 4 4 4 10 10 4 4 4 Final Carried 10 | 4 4 4 10 9 4 4 4 Class Distribution -------------------- 60% | Mutant 30% | Scavenger-Mutant 9% | Skirmisher Dominant Class ---------------- Mutant | -10/Materials Scavenger-Mutant | -9/Materials Scavenger-Mutant | -8/Materials Skirmisher | -7/Factory Mutant | -7/Waste Mutant | -7/Factory Mutant | -6/Factory Resources | -11 -10 -9 -8 -7 -7 -7 -6 ----------- Run | Scr Mat Mat Mat Fac Was Fac Fac Matter Collected 704 | 152 35 133 367 17 . . . Remotely . | . . . . . . . . Salvage Created 1428 | 77 80 200 536 191 344 . . Parts 62 | 6 5 17 28 . 6 . . Haulers Intercepted 1 | . . . 1 . . . . Recyclers Shooed 1 | . . 1 . . . . . Parts Field Recycled . | . . . . . . . . Retrieved Matter . | . . . . . . . . Parts Self-Destructed . | . . . . . . . . Prevented . | . . . . . . . . Kills | -11 -10 -9 -8 -7 -7 -7 -6 ------- Run | Scr Mat Mat Mat Fac Was Fac Fac Combat Hostiles Destroyed 20 | . 2 5 12 . 1 . . Guns 7 | . 2 4 1 . . . . Cannons 11 | . . 1 9 . 1 . . AOE 2 | . . . 2 . . . . Classes Destroyed 9 | 2 1 2 3 . 1 . . Tunneler 1 | 1 . . . . . . . Hauler 1 | . . . 1 . . . . Recycler 3 | 1 . . 1 1 . . . Watcher 1 | . . . 1 . . . . Swarmer 5 | . . 1 4 . . . . Grunt 7 | . 2 3 2 . . . . Sentry 6 | . . 1 5 . . . . Hunter 1 | . . . 1 . . . . Compactor 1 | . . . . . 1 . . Best Kill Streak 6 | 1 2 3 6 1 1 . . Combat Bots Only 5 | . 2 3 5 . 1 . . Max Kills in Single Turn 1 | 1 1 1 1 1 1 . . Gunslinging . | . . . . . . . . Exploded 1 | . . . 1 . . . . Melee . | . . . . . . . . Uniques/NPCs Destroyed . | . . . . . . . . Combat | -11 -10 -9 -8 -7 -7 -7 -6 -------- Run | Scr Mat Mat Mat Fac Was Fac Fac Damage Taken 3454 | . 35 436 1396 265 150 309 863 Core 1738 | . 11 135 338 98 . 293 863 Absorbed by Shields 51 | . . . 51 . . . . Core Remaining (%) 68 | 100 95 66 38 . . 44 . Volleys Fired 114 | 8 5 22 53 3 23 . . Largest 2 | 2 2 2 2 2 1 . . Hottest 96 | 40 40 91 96 96 80 . . Shots Fired 188 | 16 10 39 94 6 23 . . Gun 101 | 16 10 31 39 . 5 . . Cannon 78 | . . 8 49 3 18 . . Launcher 9 | . . . 6 3 . . . Special . | . . . . . . . . Kinetic 127 | 16 10 31 70 . . . . Thermal 49 | . . 8 15 3 23 . . Explosive . | . . . . . . . . Electromagnetic 12 | . . . 9 3 . . . Robot Hit Streak 15 | 3 9 14 10 2 15 . . Robot Miss Streak 5 | 3 1 4 5 3 1 . . Penetration Max . | . . . . . . . . Secondary Targets 1 | . 1 . . . . . . Max Gunslinging Chain 1 | . 1 . . . . . . Shots Hit Robots 124 | 8 9 23 59 3 22 . . Core Hits 51 | 3 4 9 23 2 6 . 4 Critical Hits 2 | . . . 2 . . . . Critical Kills . | . . . . . . . . Critical Parts Destroyed 2 | . . . 2 . . . . Melee Attacks . | . . . . . . . . Impact . | . . . . . . . . Slashing . | . . . . . . . . Piercing . | . . . . . . . . Sneak Attacks . | . . . . . . . . Combat Hostiles . | . . . . . . . . Follow-up Attacks . | . . . . . . . . Damage Inflicted 2653 | 90 93 325 1383 221 519 . 22 Guns 766 | 90 93 242 253 . 88 . . Cannons 1277 | . . 83 716 47 431 . . Explosions 588 | . . . 414 174 . . . Melee . | . . . . . . . . Ramming 22 | . . . . . . . 22 Kinetic 1141 | 90 93 242 716 . . . . Thermal 1072 | . . 83 423 47 519 . . Explosive . | . . . . . . . . Electromagnetic 418 | . . . 244 174 . . . Impact . | . . . . . . . . Slashing . | . . . . . . . . Piercing . | . . . . . . . . Highest Corruption 16 | . . . . . 16 16 1 Average Corruption 13 | . . . . . 11 16 1 Corruption Purged . | . . . . . . . . Effects 26 | . . . . . 7 19 . Message Errors 3 | . . . . . 3 . . Matter Fused 2 | . . . . . 2 . . Heat Flow Errors 4 | . . . . . 1 3 . Energy Discharges 2 | . . . . . . 2 . Data Loss (minor) 3 | . . . . . . 3 . Data Loss (major) 2 | . . . . . . 2 . Misdirections 9 | . . . . . . 9 . Targeting Errors 1 | . . . . . 1 . . Overload Shots . | . . . . . . . . Overflow Damage 63 | . . 2 39 22 . . . Projectiles 10 | . . 2 8 . . . . Explosions 53 | . . . 31 22 . . . Melee . | . . . . . . . . Knockbacks 5 | . . . 5 . . . . Impact . | . . . . . . . . Kinetic 5 | . . . 5 . . . . Secondary . | . . . . . . . . Self-Inflicted Damage 84 | . . . 28 46 . . 10 Shots 3 | . . . 1 2 . . . Rammed 4 | . . . . . . . 4 Targets Rammed 4 | . . . . . . . 4 Kicked . | . . . . . . . . Crushed . | . . . . . . . . Highest Temperature 232 | . 6 232 36 . 111 214 . Average Temperature 58 | . 6 102 12 . 62 101 . Received Heat Transfer 624 | . 18 174 267 108 . 33 24 Siege Activations . | . . . . . . . . Robots Corrupted . | . . . . . . . . Combat Hostiles . | . . . . . . . . Parts Fried 1 | . . . 1 . . . . Impact Corruptions . | . . . . . . . . Robots Melted . | . . . . . . . . Combat Hostiles . | . . . . . . . . Parts Melted 1 | . . . 1 . . . . Heat Transferred 1727 | . . 148 470 74 1035 . . Parts Sabotaged . | . . . . . . . . Parts Stolen . | . . . . . . . . Parts Stripped . | . . . . . . . . Power Chain Reactions 2 | . . . 2 . . . . Missiles Intercepted . | . . . . . . . . Alert | -11 -10 -9 -8 -7 -7 -7 -6 ------- Run | Scr Mat Mat Mat Fac Was Fac Fac Peak Influence 364 | 10 101 140 307 364 127 144 306 Initial 127 | . 6 42 59 99 127 22 70 Average 95 | 4 53 75 113 181 71 53 175 Maximum Alert Level 1 | . . . 1 1 . . 1 Low Security (%) 84 | 100 100 100 73 63 100 100 53 Level 1 15 | . . . 26 36 . . 46 Level 2 . | . . . . . . . . Level 3 . | . . . . . . . . Level 4 . | . . . . . . . . Level 5 . | . . . . . . . . High Security . | . . . . . . . . Max Security . | . . . . . . . . Squads Dispatched 11 | . 2 2 2 1 . 2 2 Investigation . | . . . . . . . . Extermination . | . . . . . . . . Reinforcement 10 | . 2 2 1 1 . 2 2 Assault . | . . . . . . . . Garrison 1 | . . . 1 . . . . Intercept . | . . . . . . . . Construction Impeded 1 | . . . . 1 . . . Haulers Reinforced . | . . . . . . . . Stealth | -11 -10 -9 -8 -7 -7 -7 -6 --------- Run | Scr Mat Mat Mat Fac Was Fac Fac Distress Signals 3 | . . 1 1 . . . 1 Communications Jammed . | . . . . . . . . Distress Signals . | . . . . . . . . Times Spotted 79 | . 4 14 20 7 5 11 18 Peak Tracking Total 13 | . 2 5 9 4 4 5 13 Tactical Retreats 12 | . . 4 2 1 . 2 3 Traps | -11 -10 -9 -8 -7 -7 -7 -6 ------- Run | Scr Mat Mat Mat Fac Was Fac Fac Traps Triggered 3 | . . . . 1 . 2 . Indirectly . | . . . . . . . . Trap Hack Attempts . | . . . . . . . . Triggered . | . . . . . . . . Disarmed . | . . . . . . . . Reprogrammed . | . . . . . . . . Reused . | . . . . . . . . Traps Extracted . | . . . . . . . . Installed . | . . . . . . . . Triggered . | . . . . . . . . Machines | -11 -10 -9 -8 -7 -7 -7 -6 ---------- Run | Scr Mat Mat Mat Fac Was Fac Fac Machines Disabled 11 | . . 1 4 6 . . . Max in Single Turn 4 | . . 1 1 4 . . . Machines Sabotaged . | . . . . . . . . Garrisons Compromised . | . . . . . . . . Overloaded Fab Kills . | . . . . . . . . Fab Network Shutdowns . | . . . . . . . . Hacking | -11 -10 -9 -8 -7 -7 -7 -6 --------- Run | Scr Mat Mat Mat Fac Was Fac Fac Machines Accessed 13 | . 1 1 6 . . 1 4 Terminals 7 | . 1 1 4 . . 1 . Fabricators 3 | . . . . . . . 3 Repair Stations . | . . . . . . . . Recycling Units 1 | . . . 1 . . . . Scanalyzers . | . . . . . . . . Garrison Access 2 | . . . 1 . . . 1 Total Hacks 33 | . 2 3 18 . . 2 8 Successful 15 | . . 1 8 . . 1 5 Failed 18 | . 2 2 10 . . 1 3 Catastrophic 5 | . 1 1 2 . . 1 . Database Lockouts . | . . . . . . . . Manual 29 | . 2 3 15 . . 1 8 Terminals 19 | . 2 3 12 . . 2 . Fabricators 7 | . . . . . . . 7 Repair Stations . | . . . . . . . . Recycling Units 2 | . . . 2 . . . . Scanalyzers . | . . . . . . . . Garrison Access 5 | . . . 4 . . . 1 Terminal Hacks 6 | . . 1 4 . . 1 . Record 1 | . . . . . . 1 . Prototype ID Bank 1 | . . . 1 . . . . Unreport Threat 4 | . . 1 3 . . . . Fabricator Hacks . | . . . . . . . . Repair Station Hacks . | . . . . . . . . Recycling Unit Hacks 1 | . . . 1 . . . . Retrieve Components 1 | . . . 1 . . . . Scanalyzer . | . . . . . . . . Garrison Access Hacks . | . . . . . . . . Unauthorized Hacks 8 | . . . 3 . . . 5 Terminals 1 | . . . 1 . . . . Botnet 1 | . . . 1 . . . . Fabricators 4 | . . . . . . . 4 Report 2 | . . . . . . . 2 Siphon 2 | . . . . . . . 2 Repair Stations . | . . . . . . . . Recycling Units 1 | . . . 1 . . . . Mask 1 | . . . 1 . . . . Scanalyzers . | . . . . . . . . Garrison Access 2 | . . . 1 . . . 1 Reprogram 2 | . . . 1 . . . 1 Data Cores Recovered . | . . . . . . . . Used . | . . . . . . . . Hacking Detections 12 | . 1 1 5 . . 1 4 Full Trace Events . | . . . . . . . . Feedback Events . | . . . . . . . . Feedback Blocked . | . . . . . . . . Robot Schematics Acquired . | . . . . . . . . Robots Built . | . . . . . . . . Matter . | . . . . . . . . Time . | . . . . . . . . Total Robot Build Rating . | . . . . . . . . Part Schematics Acquired . | . . . . . . . . Parts Built . | . . . . . . . . Matter . | . . . . . . . . Time . | . . . . . . . . Total Part Build Rating . | . . . . . . . . Parts Repaired . | . . . . . . . . Time . | . . . . . . . . Parts Recycled . | . . . . . . . . Recycled Matter . | . . . . . . . . Retrieved Matter . | . . . . . . . . Retrieved Components 5 | . . . 5 . . . . Parts Scanalyzed . | . . . . . . . . Part Schematics Acquired . | . . . . . . . . Parts Damaged . | . . . . . . . . Bothacking | -11 -10 -9 -8 -7 -7 -7 -6 ------------ Run | Scr Mat Mat Mat Fac Was Fac Fac Used RIF Installer . | . . . . . . . . Robots Hacked . | . . . . . . . . Non-combat . | . . . . . . . . Combat . | . . . . . . . . Robot Hacks Applied . | . . . . . . . . Relay Couplers Released . | . . . . . . . . Robots Rewired . | . . . . . . . . Allies Hacked . | . . . . . . . . Hacks Repelled . | . . . . . . . . Allies | -11 -10 -9 -8 -7 -7 -7 -6 -------- Run | Scr Mat Mat Mat Fac Was Fac Fac Total Allies 3 | . . . 2 . 1 . . Largest Group 2 | . . . 2 . 1 . . Highest-Rated Group 32 | . . . 32 . 31 . . Highest-Rated Ally 31 | . . . 16 . 31 . . Total Orders . | . . . . . . . . Ally Attacks 25 | . . . 16 . 9 . . Total Damage 376 | . . . 187 . 189 . . Kills 2 | . . . 2 . . . . Allies Corrupted . | . . . . . . . . Allies Melted . | . . . . . . . . Intel | -11 -10 -9 -8 -7 -7 -7 -6 ------- Run | Scr Mat Mat Mat Fac Was Fac Fac Robot Analysis Total . | . . . . . . . . Derelict Logs Recovered . | . . . . . . . . Drone Launches . | . . . . . . . . Drone Recoveries . | . . . . . . . . Exploration | -11 -10 -9 -8 -7 -7 -7 -6 ------------- Run | Scr Mat Mat Mat Fac Was Fac Fac Turns Passed 1666 | 71 133 199 544 113 212 242 152 Spaces Moved 1736 | 41 145 149 381 94 210 423 293 Core 914 | 3 . . 37 . 158 423 293 Treads 3 | . . . 3 . . . . Legs . | . . . . . . . . Wheels 562 | 38 145 149 230 . . . . Hover 257 | . . . 111 94 52 . . Flight . | . . . . . . . . Fastest Speed 45 | 50 80 80 45 105 45 50 50 Average Speed 69 | 82 80 84 87 105 70 50 50 Slowest Speed 200 | 100 80 100 160 105 200 50 50 Overloaded Moves . | . . . . . . . . Propulsion Burnouts . | . . . . . . . . Robots Hopped . | . . . . . . . . Cave-ins Triggered . | . . . . . . . . Exploration Rate (%) 26 | 4 34 16 38 4 84 19 14 Regions Visited 7 Branch Regions . Pre-discovered Areas . | . . . . . . . . Known Exits Taken . | . . . . . . . . Unknown Exits Taken 5 | 1 1 1 1 . . 1 . Scrap Searched . | . . . . . . . . Spaces Dug . | . . . . . . . . Terrain Destroyed 37 | . . . 37 . . . . Melee . | . . . . . . . . Projectile 5 | . . . 5 . . . . AOE 32 | . . . 32 . . . . Terrain Rammed . | . . . . . . . . Walls Destroyed . | . . . . . . . . Machines Disabled . | . . . . . . . . Actions | -11 -10 -9 -8 -7 -7 -7 -6 --------- Run | Scr Mat Mat Mat Fac Was Fac Fac Total 2006 | 59 154 189 502 102 250 452 298 Wait 44 | . 1 4 25 1 13 . . Move 1730 | 40 144 148 380 94 209 422 293 Hop . | . . . . . . . . Pick Up 24 | 3 1 3 14 1 2 . . Fast Attach 22 | 7 . 3 11 1 . . . Attach 12 | . . 1 7 2 2 . . Detach . | . . . . . . . . Swap 11 | 1 1 3 5 . 1 . . Drop 14 | . 2 5 7 . . . . Fire 114 | 8 5 22 53 3 23 . . Melee . | . . . . . . . . Ram 4 | . . . . . . . 4 Kick . | . . . . . . . . Crush . | . . . . . . . . Escape Stasis 30 | . . . . . . 30 . Rewire 1 | . . . . . . . 1 Trap . | . . . . . . . . Miscellaneous . | . . . . . . . . Route ------- -11/Scrapyard -10/Materials -9/Materials -8/Materials -7/Factory -7/Waste -7/Factory -6/Factory History --------- Turn | Location | Event 19 | -11/Scrapyard | Discovered new exit (range 15) 72 | -11/Scrapyard | Entered Materials 186 | -10/Materials | Discovered new exit (range 10) 205 | -10/Materials | Entered another Materials area 205 | -9/Materials | Evolved 2 slots: Utility x2 400 | -9/Materials | Discovered new exit (range 5) 404 | -9/Materials | Entered another Materials area 404 | -8/Materials | Evolved 2 slots: Propulsion x1, Utility x1 644 | -8/Materials | Build established: Scavenger-Mutant 722 | -8/Materials | Garrison activated, responded to threat 733 | -8/Materials | Lost 4 parts (3n1w) 776 | -8/Materials | Core integrity fell below 50% 806 | -8/Materials | Lost 7 parts (1p2u4w) 912 | -8/Materials | Discovered new exit (range 8) 948 | -8/Materials | Entered Factory 948 | -7/Factory | Evolved 2 slots: Utility x2 1061 | -7/Factory | Sucked down chute 1061 | -7/Factory | Entered Waste 1062 | -7/Waste | Met a frightened Derelict 1076 | -7/Waste | EMP discharged 1114 | -7/Waste | Spotted C-40 Crusher 1128 | -7/Waste | Destroyed C-40 Crusher 1136 | -7/Waste | Spotted C-40 Crusher 1145 | -7/Waste | Crushed by Compactor (1 part destroyed, 2 dropped) 1153 | -7/Waste | Crushed by Compactor (1 part destroyed, 1 dropped) 1176 | -7/Waste | EMP discharged 1176 | -7/Waste | System corruption reached 10% 1184 | -7/Waste | Lost 6 parts (1p2n1u2w) 1189 | -7/Waste | Crushed by Compactor (1 part destroyed, 2 dropped) 1192 | -7/Waste | Spotted C-40 Crusher 1220 | -7/Waste | Lost 3 parts (2u1w) 1242 | -7/Waste | Spotted C-40 Crusher 1244 | -7/Waste | Spotted C-40 Crusher 1252 | -7/Waste | Discovered new exit (range 12) 1273 | -7/Waste | Entered Factory 1410 | -7/Factory | Build established: Mutant 1509 | -7/Factory | Core integrity fell below 50% 1509 | -7/Factory | Discovered new exit (range 12) 1515 | -7/Factory | Entered another Factory area 1515 | -6/Factory | Evolved 2 slots: Power x1, Utility x1 1577 | -6/Factory | Spotted B-75 Beast 1591 | -6/Factory | Core integrity fell below 50% 1631 | -6/Factory | Core integrity fell below 20% 1667 | -6/Factory | Destroyed by S-27 Virus with Autogun Last Messages --------------- 01587_ O-24 Administrator: "IFF HANDSHAKE FAILED. SECURING TERMINAL." 01589_ K-01 Serf collects debris. 01590_ O-24 Administrator uses terminal to summon reinforcements. 01590_ ALERT: Hostiles spotted, dispatching reinforcements to Terminal F014. 01590_ O-24 Administrator locks terminal. 01592_ Slug penetrates Wall. 01594_ Penetrated by Slug. 01595_ ALERT: Hostiles spotted, dispatching reinforcements to Terminal F005. 01595_ Penetrated by Slug. 01597_ Slug penetrates Terminal. 01620_ K-01 Serf pushes G-50 Soldier. 01622_ Attempting to rewire G-50 Soldier. 01622_ K-01 Serf pushes G-50 Soldier. 01635_ Slammed into R-10 Processor. 01638_ Slammed into K-01 Serf. 01640_ Slammed into R-10 Processor. 01640_ Destabilizing: System corrupted (+1). 01642_ Slammed into R-10 Processor. Map ----- +----------------------------------------------------+ | ?????????????????????????????????????????????????? | | ?????????????????????????????????????????????????? | | ?????????????????????????????????????????????????? | | ?????????????????????????????????????????????????? | | ?????????????????????????????????????????????????? | | ?????????????????????????????????????????????????? | | ?????????????????????????????????????????????????? | | ?????????????????????????????????????????????????? | | ?????????????????????????????????????????????????? | | ?????????????????????????????????????????????????? | | ?????????????????????????????????????????????????? | | ?????????????????????????????????????????????????? | | ?????????????????????????????????????????????????? | | ?????????????????????????????????????????????????? | | ?????????????????????????????????????????????????? | | ??????????????????????????????????????? #????????? | | ????????????????????????????????? ????? #????????? | | ????????????????????????????????? ???? #????????? | | ?????????????????????????????????? ?"" #????????? | | ?????????????????????????????????? #????????? | | ??????????????????????????????????? """ #????????? | | ??????????????????????????????????? """ #????????? | | ????????????????????????????????????""" #????????? | | ???????????????????????????????????? #????????? | | ???????????????????????#########?????] ?????????? | | ??????????????????##+### @ #????? #######??? | | ??????????????? #######+## #?? | | ???????????? = s k # " | | ???????????? s + " | | ??????????? sp # " | | ???????????? #######+## !#?? | | ????????????############ #????????### ###??? | | ???????????????????????### ###??????????# #????? | | ?????????????????????????# #?????????#### ###### | | ?????????????????????????+ #?????????# | | ?????????????????????????# #?????????# ######## | | ?????????????????????????+ #?????????# #??????# | | ?????????????????????????##+##?????????# #??????# | | ???????????????????????????????????????# #??????# | | ???????????????????????????????????????# #??????# | | ???????????????????????????????????????# #??????# | | ?????????????????????????????????????###/######## | | ?????????????????????????????????????# / | | ?????????????????????????????????????# ### | | ?????????????????????????????????????# #?## | | ?????????????????????????????????????# #??? | | ?????????????????????????????????????# ! #??? | | ?????????????????????????????????????# #??? | | ?????????????????????????????????????# #??? | | ?????????????????????????????????????# ! #??? | +----------------------------------------------------+ Best States ------------- Heat Dissipation 62 Energy Generation 14 Energy Capacity 250 Matter Stores 216 Matter Capacity 300 Sight Range 16 Robot Scan Range 16 Terrain Scan Range 16 Terrain Scan Density 210 Armor Coverage 225 Evasion (%) 56 Recoil Reduction 1 Item Schematics ----------------- None Robot Schematics ------------------ None Fabricated ------------ Nothing Alien Tech Used ----------------- None Achievements -------------- None Challenges ------------ None Game ------ Seed LayeredLayeredKatana Manual? 0 Play Time 00:20:22 Cumulative 37.4 hours Start 2022.02.07 @ 16:54:14 End 2022.02.07 @ 17:12:46 Sessions 1 Manual Loads 0 Difficulty Rogue Special Mode None Game No. 64 Rogue 64 Adventurer 0 Explorer 0 Win Type - Total 0 Types 0/0/0/0/0/0/0/0/0 Lore% 49 Gallery% 45 Achievement% 39 Wizard Run 0 Options --------- ASCII 0 Keyboard 0 Movement Numpad Keybinds 0 Fullscreen 1 Font 24/Smallcaps Map View 76x50 Tactical HUD 1 Map Filters NONE Filters NONE Steam 1 RUN: 516b851d-576b-490c-8e4a-d3bc2414c048